Cogmind - Beta 16 *** ADVENTURER MODE // 2025.11.22 @ 02:05:50 // AFD2019/Pay2Buy Player: EN-G1N Result: Self-destructed Performance ------------- Evolutions (2) 1000 Regions Visited (3) 600 Robots Destroyed (31) 155 Value Destroyed (923) 923 Prototype IDs (0) 0 Alien Tech Used (0) 0 Bonus (0) 0 TOTAL SCORE: 2678 Bonus ------- None Cogmind --------- Core Integrity 550/550 Matter 300/300 Energy 265/265 System Corruption 0% Temperature Cool (0) Movement Walking (105) Location -8/Materials Parts ------- > --- POWER (1) -------- Improved Ion Engine > --- PROPULSION (3) --- Improved Aluminum Leg Improved Aluminum Leg > --- UTILITY (4) ------ Cooling System Advanced Recoil Stabilizer Layered Light Armor Plating > --- WEAPON (3) ------- Enhanced Flamer > --- INVENTORY (10) --- Mining Laser Peak State ------------ > --- POWER ------------ Improved Ion Engine > --- PROPULSION ------- Improved Aluminum Leg Improved Aluminum Leg > --- UTILITY ---------- Cooling System Advanced Recoil Stabilizer Layered Light Armor Plating > --- WEAPON ----------- Enhanced Flamer Enhanced Flamer > --- INVENTORY -------- Mining Laser [Rating: 24] Favorites ----------- Power Improved Ion Engine Engine Improved Ion Engine Propulsion Improved Aluminum Leg Leg Improved Aluminum Leg Utility Cooling System Device Cooling System Protection Layered Light Armor Plating Weapon Flamer Special Weapon Flamer Build | -11 -10 -9 -8 ------- Run | Yrd Mat Mat Mat Slots Evolved 4 | . . 2 2 Power . | . . . . Propulsion 1 | . . . 1 Utility 2 | . . 1 1 Weapon 1 | . . 1 . Parts Attached 6 | . 2 4 . Power . | . . . . Engine . | . . . . Core . | . . . . Reactor . | . . . . Propulsion . | . . . . Treads . | . . . . Leg . | . . . . Wheel . | . . . . Hover . | . . . . Flight . | . . . . Utility 1 | . . 1 . Device 1 | . . 1 . Storage . | . . . . Processor . | . . . . Hackware . | . . . . Protection . | . . . . Artifact . | . . . . Weapon 5 | . 2 3 . Energy Gun . | . . . . Energy Cannon . | . . . . Ballistic Gun . | . . . . Ballistic Cannon . | . . . . Launcher . | . . . . Special Weapon 5 | . 2 3 . Impact Weapon . | . . . . Slashing Weapon . | . . . . Piercing Weapon . | . . . . Special Melee Weapon . | . . . . Unidentified Prototypes . | . . . . Parts Lost 7 | . 2 4 1 Power 1 | . . 1 . Propulsion . | . . . . Utility . | . . . . Weapon 6 | . 2 3 1 Highest Loss Streak 2 | . 1 2 1 To Critical Strikes . | . . . . Average Backups . | . . 1 1 Power . | . . . . Propulsion . | . . . . Utility . | . . . . Weapon . | . . 1 1 Tool/Special . | . . . . Unused Backups . | . . . . Power . | . . . . Propulsion . | . . . . Utility . | . . . . Weapon . | . . . . Tool/Special . | . . . . Average Slot Usage (%) 76 | . 84 71 63 Engine 12 | . 14 10 9 Leg 24 | . 28 22 18 Device 12 | . 14 10 10 Special Weapon 26 | . 27 27 17 Peak Build Rating 24 | 12 12 17 24 Average Rating 13 | 12 11 14 18 On Entrance 10 | . 12 12 18 Avg Prop Armor Cover (%) . | . . . . Naked Turns . | . . . . Heaviest Build 18 | 13 13 17 18 Greatest Support 26 | 26 26 26 26 Greatest Overweight (x) . | . . . . Average Overweight (x) . | . . . . Largest Inventory Capacity 10 | 10 10 10 10 Average Capacity 10 | 10 10 10 10 Most Carried 3 | . 1 3 1 Average Carried . | . . 1 1 Final Capacity 10 | 10 10 10 10 Final Carried 1 | . 1 1 1 Class Distribution -------------------- 79% | Mutant 20% | Pyromaniac-Gunner Dominant Class ---------------- Mutant | -10/Materials Mutant | -9/Materials Mutant | -8/Materials Resources | -11 -10 -9 -8 ----------- Run | Yrd Mat Mat Mat Matter Collected 235 | 52 103 80 . Remotely . | . . . . Salvage Created 611 | 52 103 341 115 Parts . | . . . . Haulers Intercepted . | . . . . Recyclers Shooed . | . . . . Parts Field Recycled . | . . . . Retrieved Matter . | . . . . Parts Self-Destructed . | . . . . Prevented . | . . . . Parts Restored . | . . . . Kills | -11 -10 -9 -8 ------- Run | Yrd Mat Mat Mat Combat Hostiles Destroyed 27 | . 10 14 3 Cannons 19 | . 8 10 1 Classes Destroyed 7 | 2 2 1 2 Worker 1 | . . . 1 Tunneler 2 | 1 1 . . Recycler 1 | 1 . . . Swarmer 6 | . 6 . . Grunt 15 | . 4 10 1 Sentry 5 | . . 4 1 Hunter 1 | . . . 1 Best Kill Streak 3 | 2 3 3 3 Combat Bots Only 3 | . 3 3 2 Max Kills in Single Turn 1 | 1 1 1 1 Gunslinging . | . . . . Exploded . | . . . . Melee . | . . . . Uniques/NPCs Destroyed . | . . . . Combat | -11 -10 -9 -8 -------- Run | Yrd Mat Mat Mat Hostile Shots Fired 101 | . 59 33 9 Missed 31 | . 18 10 3 Hits 70 | . 41 23 6 Projectile 70 | . 41 23 6 Critical Strikes 2 | . 2 . . Damage Taken 602 | . 322 208 72 Core 49 | . 49 . . Absorbed by Shields . | . . . . Ignored by Resistances 177 | . 96 60 21 Core Remaining (%) 93 | 100 80 100 . Volleys Fired 69 | 4 33 25 7 Largest 3 | 2 2 3 2 Hottest 280 | 200 200 280 160 Shots Fired 149 | 8 63 65 13 Gun . | . . . . Cannon . | . . . . Launcher . | . . . . Special 149 | 8 63 65 13 Kinetic . | . . . . Thermal 149 | 8 63 65 13 Explosive . | . . . . Electromagnetic . | . . . . Robot Hit Streak 31 | 3 29 31 18 Robot Miss Streak 3 | 1 3 1 . Penetration Max . | . . . . Secondary Targets . | . . . . Shots Hit Robots 116 | 6 46 52 12 Core Hits 50 | 3 17 24 6 Critical Kills . | . . . . Critical Parts Destroyed . | . . . . Critical Strikes 12 | . 3 7 2 Burn 12 | . 3 7 2 Melee Attacks . | . . . . Impact . | . . . . Slashing . | . . . . Piercing . | . . . . Sneak Attacks . | . . . . Combat Hostiles . | . . . . Follow-up Attacks . | . . . . Damage Inflicted 1311 | 65 526 582 138 Guns . | . . . . Cannons . | . . . . Explosions . | . . . . Melee . | . . . . Ramming 27 | . 13 9 5 Kinetic . | . . . . Thermal 1284 | 65 513 573 133 Explosive . | . . . . Electromagnetic . | . . . . Impact . | . . . . Slashing . | . . . . Piercing . | . . . . Highest Corruption . | . . . . Average Corruption . | . . . . Corruption Purged . | . . . . Corruption Blocked . | . . . . Overload Shots . | . . . . Overflow Damage 5 | . . 5 . Projectiles 5 | . . 5 . Explosions . | . . . . Melee . | . . . . Knockbacks . | . . . . Impact . | . . . . Kinetic . | . . . . Secondary . | . . . . Self-Inflicted Damage . | . . . . Shots . | . . . . Rammed . | . . . . Targets Rammed 4 | . 2 1 1 Kicked 4 | . 2 1 1 Crushed . | . . . . Highest Temperature 65 | . 65 42 7 Average Temperature 17 | . 25 15 5 Received Heat Transfer 288 | . 147 132 9 Siege Activations . | . . . . Martial Activations . | . . . . Shielding Activations . | . . . . Robots Disrupted 5 | . 1 3 1 Combat Hostiles 5 | . 1 3 1 Robots Corrupted . | . . . . Combat Hostiles . | . . . . Parts Fried . | . . . . Impact Corruptions . | . . . . Robots Melted 8 | . 2 4 2 Combat Hostiles 8 | . 2 4 2 Parts Melted 9 | . 6 2 1 Heat Transferred 11200 | 480 4160 5280 1280 Parts Sabotaged . | . . . . Parts Stolen . | . . . . Parts Stripped . | . . . . Power Chain Reactions . | . . . . Alert | -11 -10 -9 -8 ------- Run | Yrd Mat Mat Mat Maximum Alert Level . | . . . . Low Security (%) 100 | 100 100 100 100 Level 1 . | . . . . Level 2 . | . . . . Level 3 . | . . . . Level 4 . | . . . . Level 5 . | . . . . High Security . | . . . . Max Security . | . . . . Peak Influence 172 | 5 85 172 73 Initial 58 | . . 25 58 Average 41 | 1 28 57 48 Influence Increases 845 | 10 303 447 85 Destroy 0b10 Robot/C 540 | . 200 280 60 Destroy 0b10 Robot/NC 20 | 10 5 . 5 Destroy Leader 160 | . 40 100 20 Successful Hack 18 | . 11 7 . Destroy Structure 2 | . 2 . . Lose Combat Pursuer 105 | . 45 60 . Influence Decreases 772 | 10 233 355 174 Entered New Map 149 | . . 45 104 Time Decay 563 | 10 223 270 60 Lost Part 60 | . 10 40 10 Squads Dispatched 6 | . . 5 1 Investigation 4 | . . 3 1 Extermination . | . . . . Reinforcement 2 | . . 2 . Assault . | . . . . Garrison . | . . . . Intercept . | . . . . Searches Triggered . | . . . . Construction Impeded . | . . . . Haulers Reinforced . | . . . . Active Scanning Responses . | . . . . Cargo Convoy Interrupts . | . . . . Stealth | -11 -10 -9 -8 --------- Run | Yrd Mat Mat Mat Distress Signals 4 | . 1 3 . Communications Jammed . | . . . . Distress Signals . | . . . . Times Spotted 39 | . 15 20 4 Peak Tracking Total 5 | . 4 5 2 Tactical Retreats 3 | . 1 2 . Traps | -11 -10 -9 -8 ------- Run | Yrd Mat Mat Mat Traps Triggered 1 | . . . 1 Indirectly . | . . . . Trap Hack Attempts . | . . . . Triggered . | . . . . Disarmed . | . . . . Reprogrammed . | . . . . Reused . | . . . . Traps Extracted . | . . . . Installed . | . . . . Triggered . | . . . . Machines | -11 -10 -9 -8 ---------- Run | Yrd Mat Mat Mat Machines Disabled . | . . . . Max in Single Turn . | . . . . Machines Repaired . | . . . . Machines Dismantled . | . . . . Machines Sabotaged . | . . . . Overloaded Fab Kills . | . . . . Hacking | -11 -10 -9 -8 --------- Run | Yrd Mat Mat Mat Machines Accessed 9 | . 5 4 . Terminals 7 | . 5 2 . Fabricators . | . . . . Repair Stations . | . . . . Recycling Units . | . . . . Scanalyzers 2 | . . 2 . Garrison Access . | . . . . Total Hacks 26 | . 12 14 . Successful 20 | . 9 11 . Failed 6 | . 3 3 . Catastrophic . | . . . . Database Lockouts . | . . . . Manual 11 | . 8 3 . Terminals 19 | . 12 7 . Fabricators . | . . . . Repair Stations . | . . . . Recycling Units . | . . . . Scanalyzers 7 | . . 7 . Garrison Access . | . . . . Terminal Hacks 5 | . 3 2 . Robot Analysis 1 | . . 1 . Locate Traps 1 | . 1 . . Reinforcement Status 1 | . 1 . . Hauler Manifests 1 | . 1 . . Zone Layout 1 | . . 1 . Fabricator Hacks . | . . . . Repair Station Hacks . | . . . . Recycling Unit Hacks . | . . . . Scanalyzer 7 | . . 7 . Insert Component 3 | . . 3 . Analyze 2 | . . 2 . Retrieve Study 2 | . . 2 . Garrison Access Hacks . | . . . . Unauthorized Hacks 8 | . 6 2 . Terminals 8 | . 6 2 . Assimilate 2 | . 2 . . Botnet 6 | . 4 2 . Fabricators . | . . . . Repair Stations . | . . . . Recycling Units . | . . . . Scanalyzers . | . . . . Garrison Access . | . . . . Data Cores Recovered . | . . . . Used . | . . . . Hacking Detections 3 | . . 3 . Full Trace Events 3 | . . 3 . Feedback Events . | . . . . Feedback Blocked . | . . . . Robot Schematics Acquired . | . . . . Robots Built . | . . . . Authchips . | . . . . Time . | . . . . Total Robot Build Rating . | . . . . Part Schematics Acquired 2 | . . 2 . Parts Built . | . . . . Authchips . | . . . . Time . | . . . . Total Part Build Rating . | . . . . Part Studies Acquired 2 | . . 2 . Parts Repaired . | . . . . Time . | . . . . Parts Recycled . | . . . . Recycled Matter . | . . . . Retrieved Matter . | . . . . Retrieved Components . | . . . . Parts Scanalyzed 2 | . . 2 . Part Schematics Acquired 2 | . . 2 . Parts Damaged . | . . . . Bothacking | -11 -10 -9 -8 ------------ Run | Yrd Mat Mat Mat Used RIF Installer . | . . . . Robots Hacked . | . . . . Non-combat . | . . . . Combat . | . . . . Robot Hacks Applied . | . . . . Relay Couplers Released . | . . . . Fabnet Peak Effective % . | . . . . Robots Rewired . | . . . . Allies Hacked . | . . . . Hacks Repelled . | . . . . Allies | -11 -10 -9 -8 -------- Run | Yrd Mat Mat Mat Total Allies . | . . . . Largest Group . | . . . . Highest-Rated Group . | . . . . Highest-Rated Ally . | . . . . Total Orders . | . . . . Ally Attacks . | . . . . Total Damage . | . . . . Kills . | . . . . Allies Corrupted . | . . . . Allies Melted . | . . . . Intel | -11 -10 -9 -8 ------- Run | Yrd Mat Mat Mat Active Infowar (turns) . | . . . . Robot Analysis Total 1 | . . 1 . Derelict Logs Recovered . | . . . . Drone Launches . | . . . . Drone Recoveries . | . . . . Exploration | -11 -10 -9 -8 ------------- Run | Yrd Mat Mat Mat Turns Passed 1311 | 48 590 547 126 Spaces Moved 705 | 24 323 280 78 Core . | . . . . Treads . | . . . . Legs 705 | 24 323 280 78 Wheels . | . . . . Hover . | . . . . Flight . | . . . . Fastest Speed 105 | 120 120 105 105 Average Speed 114 | 120 120 109 105 Slowest Speed 120 | 120 120 120 105 Overloaded Moves . | . . . . Propulsion Burnouts . | . . . . Robots Hopped . | . . . . Potential Cave-ins . | . . . . Cave-ins Triggered . | . . . . Exploration Rate (%) 21 | 3 42 28 12 Regions Visited 3 Branch Regions . Pre-discovered Areas . | . . . . Known Exits Taken . | . . . . Unknown Exits Taken 3 | 1 1 1 . Scrap Searched . | . . . . Spaces Dug 2 | . 2 . . Terrain Destroyed 2 | . 2 . . Melee . | . . . . Projectile 2 | . 2 . . AOE . | . . . . Terrain Rammed . | . . . . Walls Destroyed . | . . . . Machines Disabled . | . . . . Actions | -11 -10 -9 -8 --------- Run | Yrd Mat Mat Mat Total 933 | 27 396 412 98 Wait 148 | . 37 99 12 Move 702 | 23 322 279 78 Hop . | . . . . Pick Up . | . . . . Fast Attach . | . . . . Attach 4 | . . 4 . Detach 4 | . . 4 . Swap 2 | . 2 . . Drop . | . . . . Fire 69 | 4 33 25 7 Melee . | . . . . Ram . | . . . . Kick 4 | . 2 1 1 Crush . | . . . . Escape Stasis . | . . . . Rewire . | . . . . Trap . | . . . . Miscellaneous . | . . . . Route ------- -11/Scrapyard -10/Materials (discovered 2 exits: *Mat / [*Min]) -9/Materials -8/Materials History --------- Turn | Location | Event 5 | -11/Scrapyard | Discovered new exit (range 15) 49 | -11/Scrapyard | Entered Materials 266 | -10/Materials | Discovered new exit (range 16) 316 | -10/Materials | Build established: Mutant 547 | -10/Materials | Discovered new exit (range 6) 639 | -10/Materials | Entered another Materials area 639 | -9/Materials | Evolved 2 slots: Utility x1, Weapon x1 1116 | -9/Materials | Discovered new exit (range 4) 1186 | -9/Materials | Entered another Materials area 1186 | -8/Materials | Evolved 2 slots: Propulsion x1, Utility x1 1312 | -8/Materials | Self-destructed Last Messages --------------- 01270_ Y-45 Defender shuts down. 01270_ Y-45 Defender destroyed. 01272_ K-01 Serf collects debris. 01275_ G-47 Trooper suffers critical hit (Burn). 01275_ G-47 Trooper critical meltdown. 01279_ K-01 Serf destroyed. 01283_ K-01 Serf collects debris. 01285_ Kicked K-01 Serf out of the way. [You open your loot box...] [Congratulations on your very own Adv. Recoil Stabilizer!] 01300_ Penetrated by Slug. 01305_ H-55 Commando heat damages Carbon-fiber Leg. 01306_ H-55 Commando heat damages core (-10). 01306_ Slug penetrates Wall. 01307_ H-55 Commando heat spikes uncontrollably. 01309_ Enh. Flamer destroyed. 01309_ Melted Lgt. Nuclear Core. 01310_ H-55 Commando critical meltdown. Map ----- +----------------------------------------------------+ | ?????????????????????????????????????????????????? | | ?????????????????????????????????????????????????? | | ???????????????????? ??????????????????????????? | | ???????????????????# #?????????????????????????? | | ???????????????????# +?????????????????????????? | | ???????????????????# #?????????????????????????? | | ???????????????????# #?????????????????????????? | | ????????########???# #?????????????????????????? | | ""??????# #???# #?#+#?????????????????????? | | ""#?????# #???# ### ####??????????????????? | | ""#?????# #???# ???????????????????? | | ""#?????# #???# #????????????????????? | | ""#?????# #???# #????????????????????? | | ???????# #???# #????????????????????? | | ############+####### #????????????????????? | | #????????????????????? | | ########?????????????? | | # #?????????????? | | #####+################### # #?????????????? | | ??# #??????????????# # """ #?????????????? | | ??# #??????????????# %+%""" #?????????????? | | ### """ #??????????????# #%""" #?????????????? | | # """ #??????????????# # #?????????????? | | # """ #??????????????# ########?????????????? | | # #??????????????# #????????????????????? | | ########??????????????#@ #????????????????????? | | #?????????????????????# #????????????????????? | | #?????????????????????+ #????????????????????? | | ###???????????????????? # #????????????????????? | | ??????????????????????? # #????????????????????? | | ??????????????????????"?# %#????????????????????? | | ??????????????????????"?# ????????????????????? | | ????????????????????????# ????????????????????? | | ????????????????????????# ???????????????????? | | ????????????????????????####+#???????????????????? | | ?????????????????????????????????????????????????? | | ?????????????????????????????????????????????????? | | ?????????????????????????????????????????????????? | | ?????????????????????????????????????????????????? | | ?????????????????????????????????????????????????? | | ?????????????????????????????????????????????????? | | ?????????????????????????????????????????????????? | | ?????????????????????????????????????????????????? | | | | | | | | | | | | | | | +----------------------------------------------------+ Best States ------------- Heat Dissipation 53 Energy Generation 14 Energy Capacity 265 Matter Stores 300 Matter Capacity 300 Sight Range 16 Terrain Scan Density 10 Armor Coverage 150 Resistance: KI 20 Resistance: TH 20 Resistance: EX 20 Resistance: EM 20 Resistance: I 20 Resistance: S 20 Resistance: P 20 Evasion (%) 55 Recoil Reduction 6 Offensive Hacking 10 Item Schematics ----------------- Enh. Flamer | -9/Materials | Scanalyzed Cooling System | -9/Materials | Scanalyzed Robot Schematics ------------------ None Fabricated ------------ Nothing Repaired ---------- Nothing Studied --------- Imp. Aluminum Leg | -9/Materials | Hacked Imp. Ion Engine | -9/Materials | Hacked Alien Tech Used ----------------- None Achievements -------------- Item+ Challenges ------------ None Cogshop Purchases (15) ------------------------ Cooling System (Loot Box) Flamer (699) Flamer (699) Imp. Ion Engine (699) Imp. Aluminum Leg (699) Imp. Aluminum Leg (699) Flamer (734) Mining Laser (725) Flamer (861) Enh. Flamer (1007) Enh. Flamer (1009) Enh. Flamer (1358) Imp. Ion Engine (737) Lyr. Light Armor Plating (Loot Box) Adv. Recoil Stabilizer (Loot Box) Game ------ Seed CouplerSuperchargedEngine Manual? 0 Play Time 00:19:39 Cumulative 40.7 hours Start 2025.11.22 @ 01:47:05 End 2025.11.22 @ 02:05:50 Sessions 1 Manual Loads 0 Difficulty Adventurer Special Mode AFD2019/Pay2Buy Game No. 44 Rogue 0 Adventurer 44 Explorer 0 Win Type - Total 0 Types 0/0/0/0/0/0/0/0/0/0 Lore% 30 Gallery% 28 Achievement% 16 Wizard Run 0 Options --------- Layout 1 ASCII 0 Keyboard 0 Movement Mouse Keybinds 0 Fullscreen 1 Font 24/Smallcaps Map View 50x35 Zoom Use 0% Tactical HUD 1 Map Filters NONE Filters NONE Steam 1 RUN: 29d53337-67fc-4748-b8a0-ea23609a5178